bitfinex/quotes_SOLUSD_20251216
["timestamp","ask_amount","ask_price","bid_price","bid_amount"]
[1765874519023,0.72,126.39,126.38,7.9126444]
[1765874520738,0.72,126.39,126.37,16.59306647]
[1765874520954,3.61104616,126.39,126.37,16.59306647]
[1765874521328,0.72,126.38,126.37,16.59306647]
[1765874522015,3.61104616,126.38,126.37,8.68]
[1765874522219,3.61104616,126.38,126.36,7.91357627]
[1765874523767,0.72,126.38,126.36,7.91357627]
[1765874525344,3.61104616,126.38,126.36,7.91357627]
[1765874525522,2.89104616,126.37,126.35,16.59429816]
[1765874525723,3.58104616,126.37,126.35,16.59429816]
[1765874525924,0.69,126.36,126.35,8.68]
[1765874526654,15.93813736,126.38,126.35,16.59452314]
[1765874526860,0.69,126.37,126.35,36.38083101]
[1765874528664,3.58104616,126.39,126.35,36.38083101]
[1765874528830,0.69,126.39,126.35,36.38083101]
[1765874529029,0.69,126.38,126.35,36.38083101]
[1765874529230,2.89104616,126.4,126.35,36.38083101]
[1765874529231,3.58104616,126.4,126.36,8.80994492]
[1765874529526,0.69,126.39,126.37,8.68]
[1765874529862,0.69,126.42,126.38,11.70099108]
[1765874530065,4.23357428,126.47,126.4,11.70099108]
[1765874530066,0.69,126.44,126.4,11.70099108]
[1765874530363,3.58104616,126.44,126.41,8.68]
[1765874530825,0.69,126.43,126.42,7.9101408]
[1765874531853,0.69,126.43,126.41,16.59047827]
[1765874535652,3.58104616,126.43,126.4,7.91134271]
[1765874535853,2.89104616,126.42,126.4,16.59134271]
[1765874536040,3.58104616,126.42,126.4,16.59134271]
[1765874536238,13.0470912,126.43,126.4,16.59134271]
[1765874536239,0.69,126.41,126.4,16.59134271]
[1765874538957,0.7,126.41,126.4,16.59134271]
[1765874539263,3.59104616,126.41,126.4,16.59134271]
[1765874539458,3.59104616,126.41,126.4,8.68]
[1765874539664,3.59104616,126.41,126.39,7.91188727]
[1765874539864,0.7,126.4,126.39,7.91188727]
[1765874540063,0.7,126.4,126.38,16.59240011]
[1765874546975,0.71,126.44,126.39,11.69888157]
[1765874547272,2.88893665,126.44,126.4,8.68]
[1765874547467,0.71,126.43,126.4,8.68]
[1765874548055,13.0470912,126.42,126.4,16.59121141]
[1765874548258,3.59893665,126.43,126.4,16.59121141]
[1765874548476,0.71,126.42,126.4,16.59121141]
[1765874551272,0.71,126.42,126.4,8.68]
[1765874552174,0.71,126.42,126.4,16.59136081]
[1765874553155,0.67,126.45,126.41,13.32251809]
[1765874553473,0.67,126.45,126.42,8.68]
[1765874553864,13.7170912,126.45,126.42,8.68]
[1765874554270,0.67,126.44,126.43,7.90951514]
[1765874554472,0.67,126.44,126.42,16.58986444]
[1765874554681,13.7170912,126.45,126.42,16.58986444]
[1765874555274,0.67,126.44,126.42,16.58986444]
[1765874557387,18.22966437,126.45,126.42,16.58986444]
[1765874557693,0.67,126.44,126.42,16.58986444]
[1765874560197,5.18257317,126.44,126.42,8.68]
[1765874560397,0.67,126.44,126.42,8.68]
[1765874560764,5.18257317,126.44,126.42,8.68]
[1765874561087,4.51257317,126.43,126.41,61.9]
[1765874561304,4.51257317,126.43,126.41,69.81074133]
[1765874561496,5.18257317,126.43,126.41,69.81074133]
[1765874562171,0.67,126.42,126.41,69.81074133]
[1765874562389,0.67,126.42,126.41,7.91074133]
[1765874562868,0.67,126.42,126.4,8.68]
[1765874562869,0.67,126.42,126.4,16.59113458]
[1765874564192,0.67,126.43,126.4,16.59113458]
[1765874565201,5.18257317,126.43,126.4,8.68]
[1765874565374,4.51257317,126.42,126.4,8.68]
[1765874565698,5.18257317,126.42,126.4,8.68]
[1765874565893,0.67,126.41,126.4,8.68]
[1765874566969,4.51257317,126.44,126.4,16.59104867]
[1765874567172,0.67,126.43,126.4,16.59104867]
[1765874567790,5.18257317,126.43,126.4,16.59104867]
[1765874567982,4.51257317,126.42,126.4,16.59104867]
[1765874568301,5.18257317,126.42,126.4,16.59104867]
[1765874572198,4.51257317,126.43,126.4,36.36952968]
[1765874572380,5.18257317,126.43,126.4,36.36952968]
[1765874572577,0.67,126.42,126.4,36.36952968]
[1765874573385,4.51257317,126.43,126.4,36.36952968]
[1765874573591,4.51257317,126.44,126.4,36.36952968]
[1765874573900,0.67,126.43,126.4,36.36952968]
[1765874574105,13.0470912,126.45,126.4,36.36952968]
[1765874574405,13.7170912,126.45,126.41,8.80994492]
[1765874574596,13.7170912,126.45,126.42,8.68]
[1765874574997,0.67,126.44,126.43,7.90951514]
[1765874575381,18.22966437,126.45,126.43,7.90951514]
[1765874576110,0.67,126.44,126.43,7.90951514]
[1765874577205,13.7170912,126.45,126.43,7.90951514]
[1765874577412,18.22966437,126.45,126.43,7.90951514]
[1765874578485,13.7170912,126.45,126.43,7.90951514]
[1765874579387,0.67,126.45,126.43,7.90951514]
[1765874579908,0.1,126.47,126.43,7.90951514]
[1765874580084,0.77,126.47,126.44,8.68]
[1765874580808,13.8170912,126.47,126.44,8.68]
[1765874581720,13.8170912,126.47,126.45,7.90826413]
[1765874581918,0.7,126.46,126.45,7.90826413]
[1765874582216,13.1470912,126.47,126.45,7.90826413]
[1765874582407,18.33966437,126.47,126.45,7.90826413]
[1765874582984,0.1,126.47,126.46,17.48994492]
[1765874583186,0.1,126.47,126.46,22.00251809]
[1765874584402,0.1,126.48,126.46,22.00251809]
[1765874584594,0.1,126.48,126.47,4.51257317]
[1765874585015,0.1,126.48,126.47,21.22953161]
[1765874587607,0.1,126.48,126.47,16.71695844]
[1765874587817,0.1,126.48,126.47,21.22953161]
[1765874588701,0.1,126.48,126.47,16.71695844]
[1765874589305,0.1,126.48,126.47,21.22953161]
[1765874593134,0.1,126.48,126.47,83.12953161]
[1765874594728,0.1,126.48,126.47,78.61695844]
[1765874595622,0.1,126.48,126.47,83.12953161]
[1765874596721,0.1,126.48,126.47,78.61695844]
[1765874596928,0.78,126.48,126.47,78.61695844]
[1765874597307,0.1,126.48,126.47,78.61695844]
[1765874598720,0.78,126.48,126.47,78.61695844]
[1765874598919,0.78,126.48,126.46,16.58727223]
[1765874599590,0.78,126.48,126.46,16.58735379]
[1765874600397,0.78,126.48,126.46,16.56735379]
[1765874600822,0.78,126.48,126.45,7.90826413]
[1765874600996,0.78,126.48,126.45,16.56826413]
[1765874601196,8.68641396,126.48,126.45,16.56826413]
[1765874601524,5.29257317,126.48,126.45,16.56826413]
[1765874601729,0.68,126.47,126.45,16.56826413]
[1765874603026,0.1,126.48,126.45,40.85149764]
[1765874603221,0.78,126.48,126.45,36.33892447]
[1765874603404,0.78,126.48,126.45,40.85149764]
[1765874603605,0.1,126.48,126.45,40.85149764]
[1765874604037,0.78,126.48,126.45,40.85149764]
[1765874604909,0.1,126.48,126.46,8.80994492]
[1765874605111,0.1,126.48,126.47,17.46994492]
[1765874606410,0.1,126.48,126.47,25.37695844]
[1765874607114,0.1,126.48,126.47,29.88953161]
[1765874607313,0.1,126.48,126.47,91.78953161]
[1765874610253,1e-08,126.48,126.47,91.78953161]
[1765874611046,0.68000001,126.48,126.47,7.90701352]
[1765874611227,0.68000001,126.48,126.47,16.56701352]
[1765874613149,1e-08,126.48,126.47,16.56701352]
[1765874617760,1e-08,126.48,126.47,25.37695844]
[1765874622853,1e-08,126.48,126.47,87.27695844]
[1765874623748,1e-08,126.48,126.47,90.16155571]
[1765874626262,1e-08,126.48,126.47,87.27695844]
[1765874638653,0.71000001,126.48,126.47,87.27695844]
[1765874640674,1e-08,126.48,126.47,87.27695844]
[1765874641182,0.71000001,126.48,126.47,87.27695844]
[1765874641483,1e-08,126.48,126.47,87.27695844]
[1765874642149,0.71000001,126.48,126.47,7.90701352]
[1765874642350,0.71000001,126.48,126.47,16.56701352]
[1765874649585,1e-08,126.48,126.47,16.56701352]
[1765874649975,0.65000001,126.48,126.47,16.56701352]
[1765874657093,1e-08,126.48,126.47,25.37695844]
[1765874658484,1e-08,126.48,126.47,87.27695844]
[1765874659093,1e-08,126.48,126.47,90.16155571]
[1765874660198,0.1,126.5,126.47,48.02908951]
[1765874660381,0.1,126.5,126.49,11.69454219]
[1765874660581,0.1,126.5,126.49,20.35454219]
[1765874661301,0.1,126.5,126.49,25.37570822]
[1765874662900,0.75,126.5,126.49,16.71570822]
[1765874663102,0.75,126.5,126.49,25.37570822]
[1765874670305,0.75,126.5,126.49,87.27570822]
[1765874673310,0.1,126.5,126.49,87.27570822]
[1765874673494,0.75,126.5,126.49,87.27570822]
[1765874673999,0.75,126.5,126.49,78.4657633]
[1765874675381,0.1,126.5,126.49,78.4657633]
[1765874675795,0.75,126.5,126.49,78.4657633]
[1765874676009,0.1,126.5,126.49,87.27570822]
[1765874676205,0.75,126.5,126.49,69.8057633]
[1765874676507,0.75,126.5,126.49,78.4657633]
[1765874677286,0.1,126.5,126.49,87.27570822]
[1765874678499,0.75,126.5,126.49,87.27570822]
[1765874678805,0.1,126.5,126.49,87.27570822]
[1765874679600,0.75,126.5,126.49,87.27570822]
[1765874680208,0.1,126.5,126.49,87.27570822]
[1765874681611,0.75,126.5,126.49,87.27570822]
[1765874682008,0.1,126.5,126.49,87.27570822]
[1765874684809,0.1,126.5,126.49,69.8057633]
[1765874684998,0.75,126.5,126.49,78.4657633]
[1765874688216,0.1,126.5,126.49,16.5657633]
[1765874688406,0.75,126.5,126.49,16.5657633]
[1765874688711,0.75,126.5,126.47,90.47747872]
[1765874688712,0.75,126.5,126.47,81.6675338]
[1765874688936,0.75,126.5,126.48,16.56608227]
[1765874690825,0.75,126.5,126.48,36.33205317]
[1765874692428,0.1,126.5,126.49,8.80994492]
[1765874693522,0.1,126.5,126.49,16.71570822]
[1765874694022,0.1,126.5,126.49,78.61570822]
[1765874698623,0.75,126.5,126.49,78.61570822]
[1765874699923,0.1,126.5,126.49,78.61570822]
[1765874700422,0.1,126.5,126.49,83.12076983]
[1765874700609,0.1,126.5,126.49,78.61570822]
[1765874700808,0.1,126.5,126.49,83.12076983]
[1765874701406,0.1,126.5,126.49,86.28795776]
[1765874702239,0.1,126.5,126.49,83.12076983]
[1765874703108,0.1,126.5,126.49,78.61570822]
[1765874703311,1e-08,126.5,126.49,83.12076983]
[1765874703522,0.1,126.53,126.5,74.9470912]
[1765874703710,0.1,126.53,126.52,13.31500653]
[1765874703906,0.1,126.55,126.52,13.31500653]
[1765874704110,0.1,126.55,126.54,17.55215281]
[1765874704814,0.1,126.55,126.54,25.45479229]
[1765874705011,0.82,126.55,126.54,25.45479229]
[1765874705217,0.82,126.55,126.54,25.3725844]
[1765874705930,0.1,126.55,126.54,25.3725844]
[1765874706133,0.1,126.55,126.54,29.87764601]
[1765874706936,1e-08,126.56,126.55,8.80994492]
[1765874707115,1e-08,126.56,126.55,13.31500653]
[1765874707630,1e-08,126.56,126.55,21.97500653]
[1765874708622,0.1,126.61,126.55,21.97500653]
[1765874708942,0.82,126.61,126.6,16.70883907]
[1765874709120,0.1,126.61,126.6,29.87390068]
[1765874710326,0.82,126.61,126.6,29.87390068]
[1765874710734,0.1,126.61,126.6,29.87390068]
[1765874711123,0.82,126.61,126.6,16.70883907]
[1765874711322,0.82,126.61,126.6,25.36883907]
[1765874712940,0.1,126.61,126.6,29.87390068]
[1765874713845,0.1,126.68,126.63,8.80994492]
[1765874714153,0.8,126.68,126.66,4.50506161]
[1765874714448,0.1,126.68,126.67,21.97500653]
[1765874715030,0.1,126.68,126.67,34.37459723]
[1765874717020,0.1,126.68,126.67,29.86953562]
[1765874718141,0.1,126.68,126.67,25.36447401]
[1765874718445,0.1,126.68,126.67,29.86953562]
[1765874718649,0.1,126.68,126.67,25.36447401]
[1765874718963,0.8,126.68,126.67,16.70447401]
[1765874719240,0.8,126.68,126.67,25.36447401]
[1765874719626,0.8,126.68,126.67,16.55452909]
[1765874719949,0.8,126.68,126.67,25.36447401]
[1765874723028,0.8,126.68,126.67,8.66]
[1765874723229,0.8,126.68,126.67,16.55452909]
[1765874723451,0.8,126.68,126.66,8.66]
[1765874723653,0.8,126.68,126.67,7.89452909]
[1765874723853,0.1,126.68,126.67,21.20953562]
[1765874724038,12.01435504,126.76,126.68,8.80994492]
[1765874724244,0.7,126.75,126.71,8.80994492]
[1765874724549,0.7,126.75,126.72,8.66]
[1765874724929,5.20506161,126.75,126.72,8.66]
[1765874725130,0.7,126.75,126.72,16.55115254]
[1765874725346,0.7,126.74,126.72,16.55115254]
[1765874726142,0.7,126.74,126.71,16.70163917]
[1765874726338,0.7,126.74,126.72,8.66]
[1765874726641,0.7,126.74,126.72,16.5513548]
[1765874727358,0.7,126.74,126.72,36.27989015]
[1765874728074,0.7,126.74,126.73,8.80994492]
[1765874728376,0.7,126.76,126.73,13.31500653]
[1765874728534,0.7,126.75,126.74,17.46994492]
[1765874729056,0.7,126.75,126.74,8.66]
[1765874729634,0.7,126.75,126.74,16.55016884]
[1765874731257,7.8881328,126.78,126.75,8.80994492]
[1765874731258,0.7,126.77,126.75,8.80994492]
[1765874731469,0.7,126.77,126.76,8.66]
[1765874731838,0.7,126.77,126.76,16.54892395]
[1765874732848,0.7,126.77,126.76,8.66]
[1765874733562,3.57194005,126.77,126.76,8.66]
[1765874733741,11.46024169,126.77,126.75,61.9]
[1765874733934,3.56194005,126.76,126.75,70.56]
[1765874735859,24.4979552,126.76,126.72,69.79105248]
[1765874736049,15.91903125,126.73,126.69,7.8928952]
[1765874736248,15.91903125,126.7,126.64,23.72197841]
[1765874736451,2.87194005,126.72,126.65,8.66]
[1765874736452,2.87194005,126.68,126.65,8.66]
[1765874736650,2.87194005,126.67,126.65,8.66]
[1765874736840,2.87194005,126.67,126.62,19.74348005]
[1765874736841,13.7370912,126.68,126.63,7.89695664]
[1765874737041,2.87194005,126.65,126.64,8.64]
[1765874737535,0.69,126.65,126.64,16.53639924]
[1765874738143,0.69,126.65,126.64,8.64]
[1765874738560,0.69,126.65,126.64,16.53639924]
[1765874741498,0.69,126.65,126.64,8.64]
[1765874741666,0.69,126.68,126.65,8.80994492]
[1765874741843,0.69,126.68,126.66,8.66]
[1765874742045,0.69,126.68,126.67,7.89452909]
[1765874745307,0.69,126.68,126.67,16.70447401]
[1765874745570,0.69,126.7,126.67,36.44079673]
[1765874745760,0.69,126.7,126.68,8.66]
[1765874746355,2.87194005,126.69,126.68,7.94]
[1765874746774,11.45522286,126.69,126.68,7.94]
[1765874747172,3.56194005,126.69,126.68,7.94]
[1765874747751,11.4552678,126.69,126.67,8.66]
[1765874748069,0.69,126.68,126.67,8.66]
[1765874748276,3.56194005,126.68,126.67,8.66]
[1765874749159,3.56194005,126.68,126.66,70.56]
[1765874749360,0.69,126.67,126.66,70.56]
[1765874749551,0.69,126.67,126.66,8.66]
[1765874750270,0.69,126.67,126.66,16.55515237]
[1765874751457,0.69,126.67,126.66,8.66]
[1765874752073,0.69,126.67,126.65,7.8955459]
[1765874752264,0.69,126.67,126.66,8.66]
[1765874753586,3.56641438,126.67,126.65,8.66]
[1765874753965,0.69,126.66,126.65,8.66]
[1765874754180,0.69,126.66,126.65,16.55577575]
[1765874754879,0.69,126.68,126.66,7.89467557]
[1765874755083,0.69,126.68,126.67,8.66]
[1765874755461,0.69,126.68,126.67,16.55452909]
[1765874760497,3.56641438,126.68,126.67,8.66]
[1765874760666,11.46032879,126.68,126.64,7.8961591]
[1765874760994,2.87641438,126.65,126.63,8.66]
[1765874761173,2.87641438,126.64,126.63,8.66]
[1765874761369,0.69,126.66,126.63,8.66]
[1765874761695,0.69,126.67,126.63,16.55702282]
[1765874761868,2.87641438,126.64,126.63,16.55702282]
[1765874762295,3.56641438,126.64,126.63,16.55702282]
[1765874764563,0.67,126.65,126.63,16.55702282]
[1765874764788,3.54641438,126.65,126.63,16.55702282]
[1765874765382,0.67,126.64,126.63,16.55702282]
[1765874765775,16.59350558,126.64,126.61,7.89787836]
[1765874765970,2.87641438,126.63,126.61,16.55787836]
[1765874766282,2.87641438,126.62,126.61,16.55787836]
[1765874766507,0.67,126.62,126.61,16.55787836]
[1765874766693,16.59350558,126.64,126.61,16.55787836]
[1765874766880,16.59350558,126.64,126.61,17.23787836]
[1765874767199,0.67,126.63,126.61,16.55787836]
[1765874768382,16.59350558,126.64,126.61,16.55787836]
[1765874768689,0.67,126.63,126.61,16.55787836]
[1765874769892,3.54641438,126.63,126.61,16.55787836]
[1765874770294,0.67,126.62,126.61,16.55787836]
[1765874770792,3.54641438,126.62,126.61,8.66]
[1765874771473,3.54641438,126.62,126.61,16.55827027]
[1765874771801,3.54641438,126.62,126.59,16.55900772]
[1765874772098,3.54641438,126.62,126.59,8.66]
[1765874772472,3.54641438,126.62,126.6,7.89857523]
[1765874772699,3.54641438,126.61,126.59,16.5592673]
[1765874773002,3.54641438,126.61,126.59,8.66]
[1765874773294,3.54641438,126.6,126.56,8.66]
[1765874773497,2.87641438,126.58,126.56,8.66]
[1765874773690,2.87641438,126.57,126.56,8.66]
[1765874773890,0.67,126.6,126.56,17.24139064]
[1765874774085,3.54641438,126.6,126.56,17.24139064]
[1765874774597,0.67,126.59,126.56,17.24139064]
[1765874774895,0.67,126.59,126.56,36.99486725]
[1765874775271,13.7170912,126.62,126.57,9.48994492]
[1765874775577,13.7170912,126.62,126.58,8.66]
[1765874775780,13.7170912,126.62,126.58,9.34]
[1765874775974,0.67,126.64,126.59,0.68]
[1765874776180,2.87641438,126.63,126.59,0.68]
[1765874776584,0.67,126.62,126.59,0.68]
[1765874776795,3.54641438,126.62,126.58,8.66]
[1765874776996,2.87641438,126.61,126.58,16.55952066]
[1765874777197,3.54641438,126.61,126.58,16.55952066]
[1765874777599,3.54641438,126.61,126.58,17.23952066]
[1765874777901,3.54641438,126.61,126.58,36.30987616]
[1765874778789,2.87641438,126.61,126.58,36.30987616]
[1765874779007,0.67,126.6,126.58,36.30987616]
[1765874779404,2.87641438,126.61,126.58,36.30987616]
[1765874779589,3.54641438,126.61,126.58,36.30987616]
[1765874779785,15.92350558,126.62,126.58,36.98987616]
[1765874779989,16.59350558,126.62,126.58,36.98987616]
[1765874780207,13.7170912,126.62,126.59,9.48994492]
[1765874780502,13.7170912,126.62,126.6,8.66]
[1765874781606,16.59350558,126.62,126.6,16.55833467]
[1765874782697,0.67,126.62,126.6,16.55833467]
[1765874783284,3.54641438,126.63,126.6,17.23833467]
[1765874783806,0.67,126.62,126.6,16.55833467]
[1765874784709,3.54641438,126.62,126.6,16.55833467]
[1765874785307,2.87641438,126.62,126.6,16.55833467]
[1765874785507,0.67,126.61,126.6,16.55833467]
[1765874785717,2.87641438,126.62,126.6,16.55833467]
[1765874785914,3.54641438,126.62,126.6,16.55833467]
[1765874786109,0.67,126.62,126.6,78.45833467]
[1765874786815,2.87641438,126.61,126.6,70.56]
[1765874787302,3.54641438,126.61,126.6,70.56]
[1765874787692,3.54641438,126.61,126.6,8.66]
[1765874788108,3.54641438,126.61,126.59,8.66]
[1765874788296,0.67,126.6,126.59,8.66]
[1765874788500,3.54641438,126.6,126.57,16.56054923]
[1765874788810,2.87641438,126.59,126.57,16.56054923]
[1765874789116,3.54641438,126.59,126.57,16.56054923]
[1765874789892,3.54641438,126.58,126.53,0.68]
[1765874790090,2.87641438,126.57,126.55,7.90195773]
[1765874790290,3.54641438,126.57,126.55,7.90195773]
[1765874790714,0.67,126.56,126.54,16.56234993]
[1765874791021,3.54641438,126.56,126.54,16.56234993]
[1765874791222,3.54641438,126.56,126.54,8.66]
[1765874791396,3.54641438,126.55,126.53,16.56302088]
[1765874791713,24.4955743,126.55,126.53,8.66]
[1765874791926,24.4955743,126.55,126.51,8.10421111]
[1765874791927,3.54641438,126.54,126.51,8.10421111]
[1765874792212,16.59350558,126.55,126.52,7.90388871]
[1765874792516,19.75294159,126.57,126.53,16.56325821]
[1765874792517,11.47742941,126.57,126.53,16.56325821]
[1765874792714,0.7,126.56,126.53,17.24325821]
[1765874792919,3.57641438,126.57,126.53,37.00141833]
[1765874793613,29.60747353,126.58,126.55,7.90201501]
[1765874793614,15.92350558,126.58,126.55,7.90201501]
[1765874793794,16.62350558,126.58,126.55,16.56201501]
[1765874794313,0.7,126.57,126.55,16.56201501]
[1765874794499,0.7,126.57,126.55,8.66]
[1765874794705,3.57641438,126.57,126.55,8.66]
[1765874795318,0.7,126.57,126.55,8.66]
[1765874795916,5.20192574,126.57,126.55,8.66]
[1765874796499,0.7,126.56,126.55,8.66]
[1765874797217,4.50192574,126.57,126.55,8.66]
[1765874797417,5.20192574,126.57,126.55,8.66]
[1765874798016,17.54901694,126.58,126.55,17.24151409]
[1765874798206,18.24901694,126.58,126.55,16.56151409]
[1765874798391,4.50192574,126.57,126.55,8.66]
[1765874798596,4.50192574,126.56,126.55,8.66]
[1765874798925,5.20192574,126.56,126.55,8.66]
[1765874799921,0.7,126.56,126.55,8.66]
[1765874800820,5.20192574,126.56,126.55,8.66]
[1765874801126,5.20192574,126.56,126.53,16.5631773]
[1765874801295,0.7,126.55,126.53,16.5631773]
[1765874801722,5.20192574,126.55,126.53,16.5631773]
[1765874802224,0.7,126.54,126.53,16.5631773]
[1765874802903,8.60156133,126.56,126.53,16.5631773]
[1765874803109,5.20192574,126.55,126.53,16.5631773]
[1765874804001,0.7,126.55,126.53,16.5631773]
[1765874804321,0.7,126.57,126.53,16.5631773]
[1765874804503,26.1494513,126.58,126.54,0.68]
[1765874804708,26.1494513,126.58,126.54,62.58]
[1765874804898,21.64752556,126.58,126.54,62.58]
[1765874805105,0.7,126.57,126.54,62.58]
[1765874805714,26.1494513,126.58,126.55,16.56201501]
[1765874806197,26.1494513,126.58,126.55,17.24201501]
[1765874806398,26.1494513,126.58,126.55,16.56201501]
[1765874807716,0.7,126.57,126.55,16.56201501]
[1765874807898,13.0470912,126.58,126.56,0.68]
[1765874808098,5.20192574,126.6,126.57,8.66]
[1765874808411,4.50192574,126.61,126.58,0.68]
[1765874808610,5.20192574,126.61,126.58,0.68]
[1765874808813,20.94498008,126.62,126.58,0.68]
[1765874809122,13.0470912,126.6,126.59,8.66]
[1765874809622,4.50192574,126.62,126.6,7.89889415]
[1765874809806,4.50192574,126.62,126.59,9.34]
[1765874809998,5.20192574,126.61,126.59,8.66]
[1765874810927,18.24901694,126.6,126.57,16.56047126]
[1765874811101,4.50192574,126.59,126.57,16.56047126]
[1765874811625,0.7,126.59,126.57,16.56047126]
[1765874811829,13.0470912,126.6,126.57,36.99238719]
[1765874812511,0.7,126.59,126.57,16.56047126]
[1765874812912,18.24901694,126.6,126.57,17.24047126]
[1765874813113,4.50192574,126.58,126.55,16.56169432]
[1765874813314,4.50192574,126.57,126.55,16.56169432]
[1765874813822,0.7,126.56,126.55,8.66]
[1765874814013,5.20192574,126.56,126.54,16.5625074]
[1765874814214,0.7,126.56,126.54,16.5625074]
[1765874814520,5.20192574,126.58,126.55,7.90184616]
[1765874815232,5.20192574,126.58,126.56,8.66]
[1765874815527,0.7,126.58,126.56,8.66]
[1765874815727,0.7,126.58,126.56,16.56105939]
[1765874816104,4.50192574,126.59,126.56,16.56105939]
[1765874816303,5.20192574,126.6,126.56,17.24105939]
[1765874816823,5.20192574,126.6,126.57,0.68]
[1765874817016,17.54901694,126.61,126.58,8.66]
[1765874817205,0.7,126.61,126.58,8.66]
[1765874817404,5.20192574,126.61,126.58,8.66]
[1765874818525,4.50192574,126.61,126.58,16.5599225]
[1765874818731,0.7,126.6,126.58,16.5599225]
[1765874821412,18.24649492,126.6,126.58,16.5599225]
[1765874824045,26.14543045,126.6,126.58,8.66]
[1765874824240,5.20940372,126.59,126.58,8.66]
[1765874825309,5.20940372,126.59,126.56,69.80082191]
[1765874825508,4.49940372,126.57,126.56,78.46082191]
[1765874826412,5.20940372,126.57,126.55,8.66]
[1765874826614,5.20940372,126.56,126.55,8.66]
[1765874827845,13.11079436,126.56,126.53,7.90294737]
[1765874828017,5.20940372,126.55,126.53,16.56294737]
[1765874828208,0.71,126.55,126.53,16.56294737]
[1765874828409,5.20940372,126.55,126.53,16.56294737]
[1765874828614,4.49940372,126.55,126.54,7.90263948]
[1765874828809,8.61037609,126.58,126.55,7.90201501]
[1765874829016,5.20940372,126.58,126.55,8.60201501]
[1765874829215,4.49940372,126.59,126.56,0.7]
[1765874829519,5.20940372,126.59,126.56,0.7]
[1765874829715,4.49940372,126.59,126.55,36.31705254]
[1765874830043,4.49940372,126.57,126.55,8.66]
[1765874830335,4.49940372,126.57,126.54,7.90241519]
[1765874830525,4.49940372,126.57,126.55,8.66]
[1765874830722,5.20940372,126.57,126.55,8.66]
[1765874831031,4.49940372,126.56,126.55,8.66]
[1765874831247,5.20940372,126.56,126.52,7.90328321]
[1765874831418,4.49940372,126.54,126.53,8.66]
[1765874832524,5.20940372,126.55,126.53,8.66]
[1765874832944,18.25649492,126.56,126.53,17.26307008]
[1765874835229,20.9475379,126.58,126.53,16.56307008]
[1765874835449,5.20940372,126.57,126.54,0.7]
[1765874835858,4.49940372,126.56,126.53,16.56307008]
[1765874836164,4.49940372,126.56,126.53,17.26307008]
[1765874836552,4.49940372,126.56,126.53,79.16307008]
[1765874836842,4.49940372,126.56,126.53,78.46307008]
[1765874837045,5.20940372,126.56,126.53,79.16307008]
[1765874837668,5.20940372,126.56,126.53,78.46307008]
[1765874838461,5.20940372,126.56,126.53,79.16307008]
[1765874839867,4.49940372,126.56,126.54,0.7]
[1765874840539,4.49940372,126.56,126.53,98.2212302]
[1765874840540,5.20940372,126.55,126.53,70.56]
[1765874841654,4.49940372,126.56,126.53,79.16315685]
[1765874841860,5.20940372,126.56,126.53,79.16315685]
[1765874843166,13.11083701,126.56,126.53,79.16315685]
[1765874843672,5.20940372,126.56,126.53,79.16315685]
[1765874844370,4.49940372,126.56,126.53,98.92131697]
[1765874844676,4.49940372,126.56,126.54,0.7]
[1765874845045,4.49940372,126.56,126.54,8.60223727]
[1765874845443,0.71,126.55,126.54,7.90223727]
[1765874845666,5.20940372,126.56,126.54,7.90223727]
[1765874846697,4.49940372,126.56,126.53,78.46293842]
[1765874846855,0.71,126.55,126.53,78.46293842]
[1765874847048,12.40100607,126.56,126.53,78.46293842]
[1765874847248,5.20940372,126.55,126.53,78.46293842]
[1765874847546,4.49940372,126.55,126.53,78.46293842]
[1765874847779,5.20940372,126.56,126.53,79.16293842]
[1765874848572,12.40081753,126.56,126.53,78.46293842]
[1765874848769,13.11081753,126.56,126.53,79.16293842]
[1765874849152,13.11081753,126.56,126.53,78.46293842]
[1765874849650,13.11081753,126.56,126.53,79.16293842]